bitfinex-derivatives/quotes_SOLF0:USTF0_20250716
["timestamp","ask_amount","ask_price","bid_price","bid_amount"]
[1752659218329,124.0,166.55,166.5,6.89303111]
[1752659218730,16.6008084,166.57,166.5,6.89303111]
[1752659219028,16.6008084,166.6,166.5,6.89303111]
[1752659219331,146.6026084,166.59,166.52,6.89303111]
[1752659219529,130.0018,166.59,166.52,6.89303111]
[1752659220632,6.89303111,166.57,166.48,6.89303111]
[1752659220825,140.6008084,166.59,166.4,6.89303111]
[1752659220826,6.89303111,166.55,166.45,6.89303111]
[1752659221633,6.0034,166.54,166.45,6.89303111]
[1752659222130,6.89303111,166.51,166.42,6.89303111]
[1752659222531,6.89303111,166.49,166.39,6.89303111]
[1752659223228,6.89303111,166.49,166.3,6.89303111]
[1752659223435,6.89303111,166.49,166.4,6.89303111]
[1752659223930,6.89303111,166.52,166.42,6.89303111]
[1752659224134,6.89303111,166.52,166.3,6.89303111]
[1752659224332,12.89743111,166.52,166.42,6.89303111]
[1752659225035,6.89303111,166.52,166.42,6.89303111]
[1752659226034,12.89703111,166.52,166.42,6.89303111]
[1752659226237,13.28575112,166.52,166.42,6.89303111]
[1752659226633,26.18268223,166.53,166.44,6.89303111]
[1752659226932,26.18268223,166.53,166.3,24.90303111]
[1752659226933,6.89303111,166.51,166.3,24.90303111]
[1752659227129,6.89303111,166.49,166.4,6.89303111]
[1752659227329,20.17878223,166.49,166.4,6.89303111]
[1752659227833,13.28575112,166.49,166.4,6.89303111]
[1752659228034,13.28575112,166.49,166.3,24.90303111]
[1752659228235,13.28575112,166.49,166.4,6.89303111]
[1752659228734,6.005,166.5,166.4,6.89303111]
[1752659229935,13.28947621,166.49,166.4,6.89303111]
[1752659230234,20.18250732,166.49,166.39,6.89303111]
[1752659230429,13.28947621,166.49,166.36,6.89303111]
[1752659230636,6.89303111,166.45,166.36,6.89303111]
[1752659231136,13.28947621,166.49,166.36,6.89303111]
[1752659231338,6.89303111,166.46,166.36,6.89303111]
[1752659231632,12.89933111,166.46,166.36,6.89303111]
[1752659231836,12.89933111,166.46,166.38,6.89303111]
[1752659232033,6.89303111,166.46,166.38,6.89303111]
[1752659232238,12.89933111,166.46,166.38,6.89303111]
[1752659232733,6.007,166.44,166.3,6.89303111]
[1752659232940,13.28947621,166.49,166.35,6.89303111]
[1752659233237,6.89303111,166.44,166.35,6.89303111]
[1752659234037,6.89303111,166.44,166.36,6.89303111]
[1752659234339,12.89933111,166.46,166.36,6.89303111]
[1752659234639,6.89303111,166.46,166.36,6.89303111]
[1752659234941,12.89953111,166.46,166.36,6.89303111]
[1752659235240,12.89953111,166.46,166.38,6.89303111]
[1752659236135,13.28947621,166.49,166.38,6.89303111]
[1752659236341,13.28947621,166.49,166.42,6.89303111]
[1752659236539,13.28947621,166.49,166.3,6.89303111]
[1752659236737,13.28947621,166.49,166.28,3.62507]
[1752659237037,13.28947621,166.49,166.42,6.89303111]
[1752659238336,13.28947621,166.49,166.3,6.89303111]
[1752659238541,6.89303111,166.48,166.39,6.89303111]
[1752659238840,6.89303111,166.46,166.37,6.89303111]
[1752659239241,6.0066,166.45,166.37,6.89303111]
[1752659239537,6.89303111,166.46,166.37,6.89303111]
[1752659239739,6.89303111,166.46,166.35,6.89303111]
[1752659240042,6.0072,166.44,166.35,6.89303111]
[1752659241043,6.0066,166.45,166.35,12.90303111]
[1752659241535,13.28947621,166.49,166.37,6.89303111]
[1752659241740,6.0062,166.46,166.37,6.89303111]
[1752659242242,6.0062,166.46,166.36,6.0096]
[1752659242243,6.0066,166.45,166.36,6.0096]
[1752659242443,6.0066,166.45,166.37,6.89303111]
[1752659242640,6.89303111,166.46,166.37,6.89303111]
[1752659242942,6.89303111,166.48,166.39,6.89303111]
[1752659243144,13.28947621,166.44,166.43,6.89303111]
[1752659243334,6.89303111,166.52,166.43,6.89303111]
[1752659243335,13.28947621,166.47,166.43,6.89303111]
[1752659245345,13.28947621,166.46,166.43,6.89303111]
[1752659247047,13.28947621,166.47,166.42,6.0076]
[1752659247248,13.28947621,166.47,166.44,6.89303111]
[1752659247448,13.28947621,166.46,166.41,6.0078]
[1752659247650,13.28947621,166.46,166.44,6.89303111]
[1752659248149,13.28947621,166.47,166.44,6.89303111]
[1752659248350,13.28947621,166.46,166.44,6.89303111]
[1752659249354,13.28947621,166.47,166.44,6.89303111]
[1752659249553,13.28947621,166.47,166.46,6.89303111]
[1752659250247,13.28947621,166.47,166.4,6.89303111]
[1752659250453,13.28947621,166.47,166.46,6.89303111]
[1752659251251,16.61184526,166.51,166.46,6.89303111]
[1752659251450,16.61184526,166.5,166.46,6.89303111]
[1752659252153,16.61184526,166.51,166.46,6.89303111]
[1752659252456,16.61184526,166.5,166.46,6.89303111]
[1752659254453,16.61184526,166.49,166.46,7.16921441]
[1752659254658,13.40934914,166.47,166.46,7.16921441]
[1752659254855,13.40934914,166.47,166.46,12.89913111]
[1752659255357,16.61184526,166.51,166.46,6.89303111]
[1752659255551,16.61184526,166.52,166.49,6.89303111]
[1752659255748,16.61184526,166.53,166.45,6.0065]
[1752659256056,16.61184526,166.52,166.49,6.89303111]
[1752659256253,16.61184526,166.53,166.49,6.89303111]
[1752659257467,16.61184526,166.52,166.4,6.89303111]
[1752659257659,16.61184526,166.54,166.51,6.89303111]
[1752659257859,16.61184526,166.55,166.53,6.89303111]
[1752659258160,6.89303111,166.62,166.53,6.89303111]
[1752659258161,16.61184526,166.56,166.53,6.89303111]
[1752659260258,16.61184526,166.56,166.55,6.89303111]
[1752659260561,16.61184526,166.58,166.55,6.89303111]
[1752659260764,16.61184526,166.6,166.57,6.89303111]
[1752659261553,16.61184526,166.61,166.57,6.89303111]
[1752659262260,16.61184526,166.62,166.57,12.89513111]
[1752659262456,16.61184526,166.62,166.5,6.89303111]
[1752659262660,16.61184526,166.62,166.57,6.89303111]
[1752659263363,22.61164526,166.64,166.59,6.89303111]
[1752659263765,16.61184526,166.64,166.59,6.89303111]
[1752659264258,16.61184526,166.65,166.59,6.89303111]
[1752659264863,16.61184526,166.64,166.59,6.89303111]
[1752659265260,16.61184526,166.64,166.61,6.89303111]
[1752659265661,16.61184526,166.65,166.61,6.89303111]
[1752659266166,16.61184526,166.66,166.63,6.89303111]
[1752659266362,13.3529997,166.64,166.63,6.89303111]
[1752659267473,13.3529997,166.64,166.51,12.0087]
[1752659267763,13.3529997,166.65,166.62,6.89303111]
[1752659268468,13.3529997,166.66,166.62,6.89303111]
[1752659268967,13.3529997,166.65,166.51,12.0087]
[1752659269169,13.3529997,166.64,166.59,6.89303111]
[1752659269559,13.3529997,166.64,166.59,12.89423111]
[1752659269765,13.3529997,166.64,166.59,6.89303111]
[1752659270867,13.3529997,166.64,166.57,6.89303111]
[1752659271067,13.3529997,166.64,166.57,12.89493111]
[1752659271365,19.3525997,166.65,166.57,6.89303111]
[1752659271560,13.3529997,166.64,166.57,6.89303111]
[1752659272263,13.3529997,166.65,166.57,6.89303111]
[1752659272460,13.3529997,166.64,166.57,6.89303111]
[1752659272969,13.3529997,166.65,166.57,6.89303111]
[1752659273363,13.3529997,166.65,166.58,6.0016]
[1752659273563,13.3529997,166.64,166.58,6.0016]
[1752659274064,13.3529997,166.65,166.59,6.0015]
[1752659274769,13.3529997,166.66,166.58,6.89303111]
[1752659275168,13.3529997,166.66,166.6,6.0009]
[1752659275369,13.3529997,166.66,166.58,6.89303111]
[1752659275868,19.3519997,166.66,166.59,6.0012]
[1752659276069,13.3529997,166.66,166.58,6.89303111]
[1752659276369,13.3529997,166.66,166.6,12.89403111]
[1752659277168,13.3529997,166.66,166.59,6.0013]
[1752659277570,19.3522997,166.66,166.59,6.0013]
[1752659277770,13.3529997,166.65,166.58,12.89473111]
[1752659277970,13.3529997,166.65,166.58,6.89303111]
[1752659278369,13.3529997,166.65,166.59,6.0013]
[1752659279068,19.3523997,166.65,166.59,6.0013]
[1752659279972,13.3529997,166.65,166.59,6.0013]
[1752659280670,13.3529997,166.65,166.62,6.89303111]
[1752659281065,13.3529997,166.67,166.66,5.999]
[1752659281271,13.3529997,166.69,166.66,4.11942259]
[1752659281572,13.3529997,166.73,166.68,4.11942259]
[1752659281772,16.61184526,166.78,166.71,4.11942259]
[1752659281773,13.3529997,166.74,166.71,4.11942259]
[1752659282169,13.3529997,166.74,166.64,4.11942259]
[1752659282170,13.3529997,166.77,166.73,4.11942259]
[1752659282475,13.3529997,166.78,166.73,4.11942259]
[1752659282670,21.05352358,166.79,166.73,4.11942259]
[1752659283076,21.05352358,166.79,166.73,6.85661237]
[1752659283477,5.9949,166.78,166.73,6.85661237]
[1752659283673,21.05352358,166.79,166.72,6.85661237]
[1752659284577,5.9947,166.78,166.72,6.85661237]
[1752659284779,21.05352358,166.79,166.72,6.85661237]
[1752659285175,27.04792358,166.79,166.72,6.85661237]
[1752659285676,124.0,166.81,166.74,6.85661237]
[1752659286176,5.9942,166.8,166.74,6.85661237]
[1752659286376,351.94072493,166.83,166.74,6.85661237]
[1752659286778,475.94072493,166.83,166.74,6.85661237]
[1752659287170,5.9933,166.82,166.74,6.85661237]
[1752659287376,351.94072493,166.83,166.76,6.85661237]
[1752659287678,357.93362493,166.83,166.76,6.85661237]
[1752659287979,358.7973373,166.83,166.73,6.85661237]
[1752659288280,5.9935,166.82,166.75,6.85661237]
[1752659288776,351.94072493,166.83,166.79,6.85661237]
[1752659289175,351.94072493,166.83,166.7,6.85661237]
[1752659289176,124.0,166.87,166.81,6.85661237]
[1752659289379,130.85661237,166.87,166.77,6.85661237]
[1752659289678,6.85661237,166.85,166.75,6.85661237]
[1752659289878,5.9924,166.85,166.79,6.85661237]
[1752659290080,124.0,166.87,166.79,6.85661237]
[1752659290480,5.9922,166.85,166.79,6.85661237]
[1752659290678,124.0,166.87,166.79,6.85661237]
[1752659291073,5.9924,166.85,166.79,6.85661237]
[1752659291879,5.9924,166.85,166.76,5.9952]
[1752659292074,5.9924,166.85,166.79,6.85661237]
[1752659292280,124.0,166.87,166.79,6.85661237]
[1752659293182,5.992,166.86,166.79,6.85661237]
[1752659293780,5.9915,166.87,166.79,6.85661237]
[1752659293974,124.0,166.89,166.7,6.85661237]
[1752659293975,124.0,166.89,166.81,6.85661237]
[1752659294182,6.85661237,166.9,166.7,6.85661237]
[1752659294382,6.85661237,166.9,166.8,6.85661237]
[1752659294383,5.9916,166.87,166.8,6.85661237]
[1752659295484,5.9912,166.88,166.8,6.85661237]
[1752659295686,124.0,166.89,166.8,6.85661237]
[1752659295981,6.85661237,166.91,166.8,6.85661237]
[1752659296189,6.85661237,166.91,166.7,6.85661237]
[1752659296190,1.04307167,166.96,166.82,6.85661237]
[1752659296483,6.85661237,166.92,166.82,6.85661237]
[1752659296889,6.85661237,166.9,166.82,6.85661237]
[1752659297285,5.9918,166.86,166.82,6.85661237]
[1752659297583,124.0,166.95,166.7,6.85661237]
[1752659297584,124.0,166.95,166.8,6.85661237]
[1752659297788,124.0,166.95,166.82,6.85661237]
[1752659297789,6.85661237,166.91,166.82,6.85661237]
[1752659297989,130.85661237,166.95,166.84,6.85661237]
[1752659298288,130.85661237,166.95,166.86,6.85661237]
[1752659298487,124.0,166.95,166.88,6.85661237]
[1752659298890,5.9884,166.96,166.88,6.85661237]
[1752659299082,11.9708,167.04,166.9,6.85661237]
[1752659299286,6.85661237,167.0,166.9,6.85661237]
[1752659299485,5.9886,166.95,166.9,6.85661237]
[1752659299989,6.85661237,167.0,166.9,6.85661237]
[1752659300487,31.3329997,167.08,166.92,6.85661237]
[1752659300682,6.85661237,167.02,166.92,6.85661237]
[1752659301590,124.0,167.01,166.92,6.85661237]
[1752659301789,5.9868,167.0,166.92,6.85661237]
[1752659301990,124.0,167.01,166.92,6.85661237]
[1752659302186,5.987,167.0,166.94,5.9887]
[1752659302389,124.0,167.01,166.94,5.9887]
[1752659302590,124.0,167.01,166.94,12.84531237]
[1752659303086,4.10366316,167.03,166.95,4.10366316]
[1752659303693,5.9866,167.01,166.95,4.10366316]
[1752659304194,4.10366316,167.07,166.99,4.10366316]
[1752659304399,576.46994566,167.12,166.96,4.10366316]
[1752659304588,4.10366316,167.05,166.96,4.10366316]
[1752659304892,124.0,167.04,166.96,4.10366316]
[1752659305395,5.9858,167.03,166.96,4.10366316]
[1752659305788,4.10366316,167.05,166.96,4.10366316]
[1752659305988,128.10366316,167.05,166.96,4.10366316]
[1752659306188,128.10366316,167.05,166.97,4.10366316]
[1752659306792,5.9859,167.03,166.97,4.10366316]
[1752659307092,124.0,167.05,166.99,4.10366316]
[1752659307288,563.63554059,167.12,167.01,4.10366316]
[1752659307289,559.53187743,167.12,167.01,4.10366316]
[1752659307494,4.10366316,167.09,167.01,4.10366316]
[1752659307883,558.48994566,167.12,167.03,4.10366316]
[1752659308087,558.48994566,167.12,167.05,4.10366316]
[1752659308392,5.985,167.05,167.01,4.10366316]
[1752659308890,5.9847,167.06,167.01,4.10366316]
[1752659309087,4.10366316,167.09,167.01,4.10366316]
[1752659309596,558.48994566,167.12,167.07,4.10366316]
[1752659309794,682.48994566,167.12,167.07,4.10366316]
[1752659310093,564.47244566,167.12,167.09,4.10366316]
[1752659310288,558.48994566,167.12,167.09,4.10366316]
[1752659310490,5.9828,167.11,167.09,4.10366316]
[1752659310691,558.48994566,167.12,167.05,4.10366316]
[1752659310891,565.32280295,167.12,167.02,6.83285729]
[1752659311395,558.48994566,167.12,167.04,6.83285729]
[1752659311593,5.9833,167.1,167.04,6.83285729]
[1752659312395,558.48994566,167.12,167.05,6.83285729]
[1752659312590,558.48994566,167.12,167.0,6.83285729]
[1752659312591,558.48994566,167.12,167.07,6.83285729]
[1752659313693,558.48994566,167.12,167.0,6.83285729]
[1752659313896,5.9831,167.1,167.05,6.83285729]
[1752659314093,558.48994566,167.12,167.07,6.83285729]
[1752659314598,6.83285729,167.18,167.07,6.83285729]
[1752659314798,6.83285729,167.18,167.0,6.83285729]
[1752659314799,6.83285729,167.18,167.09,6.83285729]
[1752659314989,5.9819,167.14,167.09,6.83285729]
[1752659315194,6.83285729,167.18,167.09,6.83285729]
[1752659315394,124.0,167.2,167.09,6.83285729]
[1752659315594,5.9816,167.15,167.09,6.83285729]
[1752659315795,6.83285729,167.19,167.09,6.83285729]
[1752659315991,124.0,167.2,167.09,6.83285729]
[1752659316194,5.9819,167.14,167.09,6.83285729]
[1752659317000,6.83285729,167.19,167.09,6.83285729]
[1752659317995,5.9812,167.16,167.09,12.81605729]
[1752659318700,5.9807,167.17,167.11,6.83285729]
[1752659319101,124.0,167.2,167.11,6.83285729]
[1752659319299,5.9807,167.17,167.11,6.83285729]
[1752659319494,130.83285729,167.2,167.0,11.9728]
[1752659319698,130.83285729,167.2,167.09,6.83285729]
[1752659319898,5.9812,167.16,167.09,12.81625729]
[1752659320099,5.9812,167.16,167.11,6.83285729]
[1752659320303,5.9814,167.15,167.11,6.83285729]
[1752659320499,130.83285729,167.2,167.0,18.80565729]
[1752659320500,124.0,167.2,167.0,18.80565729]
[1752659320801,130.83285729,167.2,167.11,6.83285729]
[1752659321099,6.83285729,167.19,167.09,6.83285729]
[1752659321298,6.83285729,167.17,167.09,6.83285729]
[1752659322601,5.9821,167.13,167.09,6.83285729]
[1752659322995,6.83285729,167.18,167.09,6.83285729]
[1752659323198,6.83285729,167.18,167.07,6.83285729]
[1752659323400,6.83285729,167.16,167.0,6.83285729]
[1752659323606,6.83285729,167.16,167.05,6.83285729]
[1752659323805,5.9828,167.11,167.05,6.83285729]
[1752659324201,15.0,167.19,167.07,6.83285729]
[1752659324506,21.83285729,167.19,167.09,6.83285729]
[1752659324806,21.83285729,167.19,167.0,6.83285729]
[1752659324807,15.0,167.19,167.11,6.83285729]
[1752659325006,15.0,167.19,167.13,6.83285729]
[1752659325201,15.0,167.19,167.14,6.83285729]
[1752659325402,15.0,167.19,167.13,6.83285729]
[1752659325403,5.9803,167.18,167.13,6.83285729]
[1752659325908,20.98,167.19,167.13,6.83285729]
[1752659326400,20.98,167.19,167.02,11.9715]
[1752659326401,5.9803,167.18,167.02,11.9715]
[1752659326606,15.0,167.19,167.13,6.83285729]
[1752659327004,5.9805,167.18,167.13,6.83285729]
[1752659328108,5.9807,167.17,167.13,6.83285729]
[1752659328309,15.0,167.19,167.13,6.83285729]
[1752659328605,20.9801,167.19,167.15,6.83285729]
[1752659329004,15.0,167.19,167.15,6.83285729]
[1752659329308,20.9801,167.19,167.17,6.83285729]
[1752659330713,15.0,167.19,167.17,6.83285729]
[1752659332110,15.0,167.19,167.16,6.83285729]
[1752659332311,15.0,167.19,167.15,6.83285729]
[1752659332514,20.9802,167.19,167.15,6.83285729]
[1752659332907,20.9802,167.19,167.15,4.09402954]
[1752659333507,20.9802,167.19,167.11,4.09402954]
[1752659333508,19.09402954,167.19,167.11,4.09402954]
[1752659333707,4.09402954,167.17,167.11,4.09402954]
[1752659334008,4.09402954,167.15,166.97,11.9751]
[1752659334204,4.09402954,167.15,167.07,4.09402954]
[1752659334409,5.9825,167.12,167.07,4.09402954]
[1752659334608,4.09402954,167.15,166.97,11.9751]
[1752659334810,4.09402954,167.15,167.07,4.09402954]
[1752659335009,15.0,167.19,166.97,11.9751]
[1752659335010,6.82992126,167.16,167.06,6.82992126]
[1752659335211,5.9823,167.13,167.06,12.81442126]
[1752659335906,5.9823,167.13,167.07,5.9842]
[1752659336120,5.982,167.14,167.07,5.9842]
[1752659336303,6.82992126,167.16,167.06,6.82992126]
[1752659336501,6.82992126,167.16,167.06,12.81422126]
[1752659336713,5.982,167.14,167.06,12.81422126]
[1752659337508,5.9822,167.13,167.06,12.81422126]
[1752659338112,5.9821,167.13,167.06,6.82992126]
[1752659338511,5.9821,167.13,167.06,12.81432126]
[1752659339207,5.9821,167.13,167.06,6.82992126]
[1752659339604,5.9818,167.14,167.08,6.82992126]
[1752659339804,21.82992126,167.19,167.08,6.82992126]
[1752659340211,5.9822,167.13,167.08,6.82992126]
[1752659340608,5.9815,167.15,167.1,6.82992126]
[1752659340911,15.0,167.19,167.12,6.82992126]
[1752659341308,5.9807,167.17,167.12,6.82992126]
[1752659341507,15.0,167.19,167.12,6.82992126]
[1752659341707,5.9809,167.17,167.12,6.82992126]
[1752659341904,5.9809,167.17,167.14,6.82992126]
[1752659342108,15.0,167.19,167.14,6.82992126]
[1752659342313,5.9805,167.18,167.14,6.82992126]
[1752659342513,15.0,167.19,167.09,5.9834]
[1752659342712,15.0,167.19,167.12,6.82992126]
[1752659343009,15.0,167.19,167.11,6.82992126]
[1752659343215,15.0,167.19,167.01,11.9727]
[1752659343405,15.0,167.19,167.11,6.82992126]
[1752659343917,5.9812,167.16,167.11,6.82992126]
[1752659344508,15.0,167.19,167.15,6.82992126]
[1752659346512,15.0,167.19,167.17,6.82992126]
[1752659347804,237.48532751,167.22,167.17,6.82992126]
[1752659348006,231.50632751,167.22,167.2,6.82992126]
[1752659348608,5.9786,167.23,167.2,6.82992126]
[1752659349214,124.0,167.26,167.2,6.82992126]
[1752659349517,137.28776614,167.26,167.16,6.82992126]
[1752659349717,20.1176874,167.23,167.0,6.82992126]
[1752659349918,6.82992126,167.21,167.11,6.82992126]
[1752659350112,20.1176874,167.21,167.1,6.82992126]
[1752659350318,5.9819,167.14,167.1,6.82992126]
[1752659350818,5.9815,167.15,167.1,6.82992126]
[1752659351410,20.1176874,167.19,167.0,6.82992126]
[1752659351610,6.82992126,167.17,167.08,6.82992126]
[1752659351813,5.9823,167.13,167.08,6.82992126]
[1752659352009,5.9823,167.13,167.07,6.82992126]
[1752659352416,5.9819,167.14,167.07,6.82992126]
[1752659352615,5.9819,167.14,167.09,6.82992126]
[1752659353018,5.9821,167.13,167.09,6.82992126]
[1752659353318,13.28776614,167.15,167.09,6.82992126]
[1752659353716,5.9823,167.13,167.09,6.82992126]
[1752659355119,19.27006614,167.13,167.09,6.82992126]
[1752659356021,13.28776614,167.13,167.09,6.82992126]
[1752659356720,13.28776614,167.12,167.09,6.82992126]
[1752659357118,13.28776614,167.11,167.09,1.75862421]
[1752659357514,13.28776614,167.12,167.09,1.75862421]
[1752659358120,13.28776614,167.11,167.09,1.75862421]
[1752659358820,13.28776614,167.1,167.09,1.75862421]
[1752659359021,16.61184526,167.13,167.09,1.75862421]
[1752659359515,16.61184526,167.13,167.07,6.82992126]
[1752659359719,13.39310695,167.09,167.07,6.82992126]
[1752659360118,13.39310695,167.08,167.07,6.82992126]
[1752659362319,16.61184526,167.11,167.07,6.82992126]
[1752659362517,16.61184526,167.13,167.1,6.82992126]
[1752659362819,16.61184526,167.15,167.12,6.82992126]
[1752659363214,16.61184526,167.14,167.12,6.82992126]
[1752659364021,16.61184526,167.14,167.1,6.82992126]
[1752659364220,16.61184526,167.11,167.1,6.82992126]
[1752659364724,16.61184526,167.11,167.0,6.82992126]
[1752659364924,16.61184526,167.13,167.09,4.0968796]
[1752659365124,16.61184526,167.11,167.09,4.0968796]
[1752659365427,16.61184526,167.1,167.08,4.0968796]
[1752659365826,16.61184526,167.1,167.04,4.0968796]
[1752659366125,16.61184526,167.1,167.08,4.0968796]
[1752659367125,16.61184526,167.1,167.07,4.0968796]
[1752659367327,16.61184526,167.09,167.07,4.0968796]
[1752659367522,16.61184526,167.09,167.07,1.18564017]
[1752659367922,16.61184526,167.1,167.07,1.18564017]
[1752659368124,16.61184526,167.1,167.09,4.0968796]
[1752659368318,16.61184526,167.1,167.09,1.26164648]
[1752659368920,16.61184526,167.11,167.09,1.26164648]
[1752659369125,16.61184526,167.11,167.1,4.0968796]
[1752659369923,16.61184526,167.13,167.1,4.0968796]
[1752659370230,16.61184526,167.13,167.07,5.984]
[1752659370429,16.61184526,167.13,167.11,4.0968796]
[1752659370624,16.61184526,167.12,167.11,4.0968796]
[1752659371627,16.61184526,167.13,167.11,4.0968796]
[1752659372632,5.9816,167.15,167.11,4.0968796]
[1752659373126,23.24113176,167.16,167.11,4.0968796]
[1752659373727,5.9816,167.15,167.11,4.0968796]
[1752659373930,23.24113176,167.16,167.11,4.0968796]
[1752659374129,5.9815,167.15,167.11,4.0968796]
[1752659374329,29.22263176,167.15,167.11,4.0968796]
[1752659374530,23.24113176,167.15,167.11,4.0968796]
[1752659375529,29.22283176,167.15,167.11,1.02278463]
[1752659375933,23.24113176,167.15,167.11,1.02278463]
[1752659376242,23.24113176,167.15,167.04,4.0968796]
[1752659376430,16.75313553,167.09,167.08,4.0968796]
[1752659377437,16.75313553,167.09,167.04,2.07359478]
[1752659377736,16.75313553,167.1,167.08,4.0968796]
[1752659378137,16.75313553,167.09,167.08,4.0968796]
[1752659378637,23.24113176,167.13,167.08,4.0968796]
[1752659379037,16.7591418,167.09,167.08,4.0968796]
[1752659380139,5.9827,167.12,167.08,4.0968796]
[1752659381239,16.75903467,167.09,167.08,4.0968796]
[1752659381439,16.75903467,167.09,167.05,5.985]
[1752659381640,16.75903467,167.09,167.08,4.0968796]
[1752659382242,5.9827,167.12,167.08,4.0968796]
[1752659382641,16.75863952,167.09,167.08,4.0968796]
[1752659384435,16.75863952,167.1,167.08,4.0968796]
[1752659384738,16.75863952,167.1,167.09,4.0968796]
[1752659387138,16.75863952,167.11,167.09,6.80093019]
[1752659387637,16.75863952,167.12,167.09,6.80093019]
[1752659387941,16.75863952,167.12,167.11,4.0968796]
[1752659388432,16.75863952,167.12,167.11,1.29657152]
[1752659389246,23.24113176,167.16,167.11,1.29657152]
[1752659389633,5.9821,167.14,167.11,1.29657152]
[1752659391041,29.22273176,167.15,167.11,1.29657152]
[1752659391439,5.9816,167.15,167.11,1.29657152]
[1752659391738,5.9816,167.15,167.11,4.0968796]
[1752659392743,29.22273176,167.15,167.11,4.0968796]
[1752659393042,5.9819,167.14,167.11,4.0968796]
[1752659394247,29.22303176,167.14,167.11,1.16294955]
[1752659394438,23.24113176,167.14,167.11,1.16294955]
[1752659395350,29.22303176,167.14,167.11,1.16294955]
[1752659395850,5.9822,167.13,167.11,1.16294955]
[1752659396446,23.24113176,167.14,167.1,4.0968796]
[1752659396956,5.9831,167.11,167.08,4.0968796]
[1752659397450,29.22423176,167.11,167.08,4.0968796]
[1752659397645,29.22423176,167.11,167.05,5.9848]
[1752659397646,23.24113176,167.11,167.05,5.9848]
[1752659397842,23.24113176,167.11,167.08,4.0968796]
[1752659398345,23.24113176,167.11,167.08,1.33530717]
[1752659398758,23.24113176,167.12,167.08,1.33530717]
[1752659398958,29.22383176,167.12,167.08,1.33530717]
[1752659399560,29.22383176,167.12,167.09,4.0968796]
[1752659399761,5.9827,167.12,167.09,4.0968796]
[1752659401161,23.24113176,167.13,167.11,4.0968796]
[1752659401461,23.24113176,167.14,167.11,4.0968796]
[1752659402163,23.24113176,167.14,167.04,4.0968796]
[1752659402467,16.79760581,167.09,167.08,4.0968796]
[1752659402860,5.983,167.11,167.08,4.0968796]
[1752659403163,5.9831,167.11,167.08,4.0968796]
[1752659403463,5.9831,167.11,166.96,11.9765]
[1752659403665,16.7991393,167.08,167.04,4.0968796]
[1752659403961,16.7991393,167.08,167.07,4.0968796]
[1752659405853,16.7991393,167.09,167.07,4.0968796]
[1752659407563,16.7991393,167.09,167.07,1.2281819]
[1752659407767,16.7991393,167.09,167.05,4.0968796]
[1752659408064,16.7991393,167.06,167.05,4.0968796]
[1752659408563,16.7991393,167.07,167.05,4.0968796]
[1752659409662,16.7991393,167.08,167.05,4.0968796]
[1752659409858,16.7991393,167.08,167.07,4.0968796]
[1752659411465,16.7991393,167.09,167.07,4.0968796]
[1752659412167,16.7991393,167.09,167.07,10.0811796]
[1752659412666,16.7991393,167.09,167.08,5.984]
[1752659413265,23.24113176,167.14,167.1,5.9831]
[1752659413559,23.24113176,167.14,167.04,4.0968796]
[1752659413765,23.24113176,167.14,167.13,4.0968796]
[1752659413966,23.24113176,167.14,167.04,4.0968796]
[1752659413967,23.24113176,167.16,167.11,4.0968796]
[1752659414168,27.33801136,167.16,167.07,4.0968796]
[1752659414367,5.9827,167.12,167.07,4.0968796]
[1752659414669,4.0968796,167.14,167.07,4.0968796]
[1752659415059,5.9827,167.12,167.07,4.0968796]
[1752659415664,27.33801136,167.14,167.05,4.0968796]
[1752659415860,4.0968796,167.12,167.05,4.0968796]
[1752659416262,16.0565796,167.2,167.07,4.0968796]
[1752659416567,4.0968796,167.15,167.07,4.0968796]
[1752659416869,4.0968796,167.13,167.05,4.0968796]
[1752659417065,4.0968796,167.14,167.05,4.0968796]
[1752659417668,5.9831,167.11,167.05,10.0817796]
[1752659417868,4.0968796,167.13,167.05,4.0968796]
[1752659418471,5.9834,167.1,167.05,10.0818796]
[1752659419166,5.9834,167.1,167.05,5.985]
[1752659419764,5.9831,167.11,167.05,5.985]
[1752659420063,4.0968796,167.15,167.06,4.0968796]
[1752659420468,5.9824,167.13,167.07,5.984]
[1752659421072,5.9819,167.14,167.08,4.0968796]
[1752659421367,223.99767576,167.21,167.04,4.0968796]
[1752659421567,5.9817,167.15,167.11,4.0968796]
[1752659421969,5.9824,167.13,167.09,4.0968796]
[1752659422173,5.9824,167.13,166.97,11.9753]
[1752659422174,4.0968796,167.15,166.97,11.9753]
[1752659422366,4.0968796,167.13,167.06,4.0968796]
[1752659423073,5.9832,167.1,167.06,4.0968796]
[1752659423473,4.0968796,167.12,166.97,11.9753]
[1752659423670,5.9839,167.09,167.03,10.0824796]
[1752659423870,4.0968796,167.12,167.03,4.0968796]